fUSD/lending_fUSD_20251130
["ID","MTS","AMOUNT","RATE_DAILY","PERIOD"]
[395157950,1764490250053,-150.0,0.00019309,4]
[395157951,1764490250061,-150.0,0.00019309,4]
[395157952,1764490250071,-177.88,0.00019315,2]
[395157953,1764490250080,-150.0,0.00019339,4]
[395157954,1764490250088,-150.0,0.00019339,4]
[395157955,1764490250097,-150.0,0.00019355,4]
[395157956,1764490250106,-150.0,0.00019365,4]
[395157957,1764490250115,-305.37,0.00019373,2]
[395157958,1764490250124,-398.3,0.00019373,2]
[395157959,1764490250132,-150.0,0.00019383,4]
[395157960,1764490250141,-557.39,0.00019425,2]
[395157961,1764490250150,-1213.78,0.00019425,2]
[395157962,1764490250160,-170.01,0.00019425,2]
[395157963,1764490250169,-170.01,0.00019425,2]
[395157964,1764490250179,-1213.78,0.00019425,2]
[395157965,1764490250188,-552.02,0.00019425,2]
[395157966,1764490250199,-1213.78,0.00019425,2]
[395157967,1764490250210,-177.88,0.00019425,2]
[395157968,1764490250219,-552.02,0.00019425,2]
[395157969,1764490250228,-170.01,0.00019425,2]
[395157970,1764490250240,-1213.78,0.00019425,2]
[395157971,1764490250250,-170.01,0.00019425,2]
[395157972,1764490250259,-177.88,0.00019425,2]
[395157973,1764490250267,-552.02,0.00019425,2]
[395157974,1764490250277,-177.88,0.00019425,2]
[395157975,1764490250287,-1213.78,0.00019425,2]
[395157976,1764490250296,-552.02,0.00019425,2]
[395157977,1764490250305,-170.01,0.00019425,2]
[395157978,1764490250315,-1213.78,0.00019425,2]
[395157979,1764490250325,-1138.82,0.00019425,2]
[395157980,1764490250334,-170.01,0.00019425,2]
[395157981,1764490250343,-170.01,0.00019425,2]
[395157982,1764490250353,-1213.78,0.00019425,2]
[395157983,1764490250362,-355.76,0.00019425,2]
[395157984,1764490250371,-177.88,0.00019425,2]
[395157985,1764490250380,-170.01,0.00019425,2]
[395157986,1764490250391,-1213.78,0.00019425,2]
[395157987,1764490250402,-177.88,0.00019425,2]
[395157988,1764490250412,-1213.78,0.00019425,2]
[395157989,1764490250421,-170.01,0.00019425,2]
[395157990,1764490250431,-177.88,0.00019425,2]
[395157991,1764490250441,-170.01,0.00019425,2]
[395157992,1764490250450,-177.88,0.00019425,2]
[395157993,1764490250461,-1000.0,0.00019438,2]
[395157994,1764490250470,-150.0,0.00019443,4]
[395157995,1764490250479,-2129.0,0.00019452,2]
[395157996,1764490250489,-150.0,0.00019458,4]
[395157997,1764490250498,-150.0,0.00019458,4]
[395157998,1764490250508,-150.0,0.00019495,4]
[395157999,1764490250517,-150.0,0.00019495,4]
[395158000,1764490250526,-150.0,0.00019515,4]
[395158001,1764490250535,-150.0,0.00019532,4]
[395158002,1764490250545,-150.0,0.00019547,4]
[395158003,1764490250554,-150.0,0.00019547,4]
[395158004,1764490250563,-177.0,0.00019599,2]
[395158005,1764490250573,-260.0,0.00019599,2]
[395158006,1764490250582,-150.091,0.00019599,2]
[395158007,1764490250592,-150.0,0.00019599,2]
[395158008,1764490250601,-150.118,0.00019599,2]
[395158009,1764490250611,-250.0,0.00019599,2]
[395158010,1764490250620,-185.387,0.00019599,2]
[395158011,1764490250629,-150.0,0.00019599,2]
[395158012,1764490250639,-150.0,0.00019599,2]
[395158013,1764490250650,-150.0,0.00019599,2]
[395158014,1764490250660,-150.096,0.00019599,2]
[395158015,1764490250669,-613.437,0.00019599,2]
[395158016,1764490250679,-3442.0,0.00019599,2]
[395158017,1764490250689,-1332.985,0.00019599,2]
[395158018,1764490250699,-250.0,0.000196,2]
[395158019,1764490250709,-150.0,0.000196,7]
[395158020,1764490250720,-150.0,0.00019606,4]
[395158021,1764490250730,-150.0,0.00019606,4]
[395158022,1764490250741,-1000.0,0.00019621,2]
[395158023,1764490250751,-150.0,0.00019625,4]
[395158024,1764490250760,-305.37,0.00019647,2]
[395158025,1764490250770,-398.3,0.00019647,2]
[395158026,1764490250781,-150.0,0.00019651,4]
[395158027,1764490250790,-298.83,0.00019653,2]
[395158028,1764490250800,-1000.0,0.00019656,2]
[395158029,1764490250810,-150.0,0.00019675,4]
[395158030,1764490250820,-150.0,0.00019681,4]
[395158031,1764490250829,-156.587,0.00019726,2]
[395158032,1764490250839,-150.0,0.00019755,4]
[395158033,1764490250848,-150.0,0.00019755,4]
[395158034,1764490250858,-150.0,0.00019755,4]
[395158035,1764490250867,-150.0,0.00019755,4]
[395158036,1764490250876,-150.0,0.00019755,4]
[395158037,1764490250889,-150.0,0.00019755,4]
[395158038,1764490250898,-150.0,0.00019755,4]
[395158039,1764490250908,-150.0,0.00019755,4]
[395158040,1764490250919,-150.0,0.00019755,4]
[395158041,1764490250930,-152.0,0.000198,2]
[395158042,1764490250939,-152.0,0.000198,2]
[395158043,1764490250949,-152.0,0.000198,2]
[395158044,1764490250958,-152.0,0.000198,2]
[395158045,1764490250970,-152.0,0.000198,2]
[395158046,1764490250980,-152.0,0.000198,2]
[395158047,1764490250989,-152.0,0.000198,2]
[395158048,1764490250999,-1250.0,0.000198,2]
[395158049,1764490251008,-470.65325857,0.000198,2]
[395158050,1764490251018,-1250.0,0.000198,2]
[395158051,1764490251029,-153.0,0.000198,2]
[395158052,1764490251039,-153.0,0.000198,2]
[395158053,1764490251049,-157.0,0.000198,2]
[395158054,1764490251059,-152.0,0.000198,2]
[395158055,1764490251070,-241.98952237,0.000198,2]
[395158056,1764490251079,-152.0,0.000198,2]
[395158057,1764490251089,-152.0,0.000198,2]
[395158058,1764490251098,-152.0,0.000198,2]
[395158059,1764490251107,-153.0,0.000198,2]
[395158060,1764490251120,-153.0,0.000198,2]
[395158061,1764490251130,-153.0,0.000198,2]
[395158062,1764490251141,-153.0,0.000198,2]
[395158063,1764490251151,-150.0,0.00019829,4]
[395158064,1764490251160,-150.0,0.00019835,4]
[395158065,1764490251170,-150.0,0.00019859,4]
[395158066,1764490251180,-250.0,0.0001988,2]
[395158067,1764490251190,-250.0,0.0001988,2]
[395158068,1764490251202,-250.0,0.0001988,2]
[395158069,1764490251211,-250.0,0.0001988,2]
[395158070,1764490251222,-250.0,0.0001988,2]
[395158071,1764490251232,-250.0,0.0001988,2]
[395158072,1764490251243,-250.0,0.0001988,2]
[395158073,1764490251253,-250.0,0.0001988,2]
[395158074,1764490251263,-250.0,0.0001988,2]
[395158075,1764490251273,-250.0,0.0001988,2]
[395158076,1764490251283,-150.0,0.00019885,4]
[395158077,1764490251292,-621.78829552,0.00019892,2]
[395158078,1764490251302,-151.0,0.00019892,2]
[395158079,1764490251312,-334.5472959,0.00019892,2]
[395158080,1764490251321,-287.61899177,0.00019892,2]
[395158081,1764490251331,-14540.15201756,0.000199,2]
[395158082,1764490251341,-11713.65969035,0.000199,2]
[395158083,1764490251351,-150.0,0.00019903,4]
[395158084,1764490251361,-150.0,0.00019903,4]
[395158085,1764490251370,-305.37,0.00019921,2]
[395158086,1764490251381,-398.32,0.00019921,2]
[395158087,1764490251394,-150.0,0.00019963,4]
[395158088,1764490251403,-150.0,0.00019963,4]
[395158089,1764490251413,-150.0,0.00019978,4]
[395158090,1764490251423,-150.0,0.00019995,4]
[395158091,1764490251433,-10856.27032548,0.0002,2]
[395158092,1764490251443,-265096.53050355,0.0002,5]
[395158093,1764490251453,-3950.0,0.0002,2]
[395158094,1764490251465,-7247.62606,0.0002,2]
[395158095,1764490251476,-1287.02140572,0.0002,2]
[395158096,1764490251487,-1038.84063173,0.0002,2]
[395158097,1764490251497,-2846.85038149,0.0002,2]
[395158098,1764490251510,-12850.06458895,0.0002,2]
[395158099,1764490251519,-163.33646019,0.0002,2]
[395158100,1764490251529,-466.13131173,0.0002,5]
[395158101,1764490251539,-1000.0,0.0002,2]
[395158102,1764490251549,-1000.0,0.0002,2]
[395158103,1764490251558,-1000.0,0.0002,2]
[395158104,1764490251568,-5394.12325962,0.0002,2]
[395158105,1764490251578,-151.0,0.0002,2]
[395158106,1764490251587,-153.548385,0.0002,2]
[395158107,1764490251597,-151.0,0.0002,2]
[395158108,1764490251607,-151.0,0.0002,2]
[395158109,1764490251617,-211.546591,0.0002,2]
[395158110,1764490251627,-151.0,0.0002,2]
[395158111,1764490251637,-211.546591,0.0002,2]
[395158112,1764490251647,-151.0,0.0002,2]
[395158113,1764490251657,-211.546591,0.0002,2]
[395158114,1764490251666,-211.546591,0.0002,2]
[395158115,1764490251676,-151.0,0.0002,2]
[395158116,1764490251686,-151.0,0.0002,2]
[395158117,1764490251695,-151.0,0.0002,2]
[395158118,1764490251706,-151.0,0.0002,2]
[395158119,1764490251719,-151.0,0.0002,2]
[395158120,1764490251729,-156.100045,0.0002,2]
[395158121,1764490251739,-151.0,0.0002,2]
[395158122,1764490251748,-156.100045,0.0002,2]
[395158123,1764490251758,-151.0,0.0002,2]
[395158124,1764490251767,-156.100045,0.0002,2]
[395158125,1764490251777,-151.0,0.0002,2]
[395158126,1764490251787,-156.100045,0.0002,2]
[395158127,1764490251796,-151.0,0.0002,2]
[395158128,1764490251806,-246.537778,0.0002,2]
[395158129,1764490251816,-151.0,0.0002,2]
[395158130,1764490251826,-246.537778,0.0002,2]
[395158131,1764490251835,-151.0,0.0002,2]
[395158132,1764490251845,-246.537778,0.0002,2]
[395158133,1764490251855,-182.61032,0.0002,2]
[395158134,1764490251864,-246.537778,0.0002,2]
[395158135,1764490251874,-182.61032,0.0002,2]
[395158136,1764490251886,-151.0,0.0002,2]
[395158137,1764490251896,-182.61032,0.0002,2]
[395158138,1764490251906,-151.0,0.0002,2]
[395158139,1764490251916,-182.61032,0.0002,2]
[395158140,1764490251927,-151.0,0.0002,2]
[395158141,1764490251936,-214.840375,0.0002,2]
[395158142,1764490251946,-214.840375,0.0002,2]
[395158143,1764490251957,-153.155577,0.0002,2]
[395158144,1764490251967,-214.840375,0.0002,2]
[395158145,1764490251976,-481.71825,0.0002,2]
[395158146,1764490251986,-481.71825,0.0002,2]
[395158147,1764490251997,-151.0,0.0002,2]
[395158148,1764490252006,-481.71825,0.0002,2]
[395158149,1764490252016,-214.840375,0.0002,2]
[395158150,1764490252025,-481.71825,0.0002,2]
[395158151,1764490252035,-151.0,0.0002,2]
[395158152,1764490252044,-151.0,0.0002,2]
[395158153,1764490252054,-151.0,0.0002,2]
[395158154,1764490252064,-151.0,0.0002,2]
[395158155,1764490252073,-151.0,0.0002,2]
[395158156,1764490252083,-151.0,0.0002,2]
[395158157,1764490252092,-151.0,0.0002,2]
[395158158,1764490252102,-290.125033,0.0002,2]
[395158159,1764490252111,-151.0,0.0002,2]
[395158160,1764490252120,-151.0,0.0002,2]
[395158161,1764490252130,-222.604838,0.0002,2]
[395158162,1764490252139,-151.0,0.0002,2]
[395158163,1764490252148,-151.0,0.0002,2]
[395158164,1764490252158,-151.0,0.0002,2]
[395158165,1764490252168,-151.0,0.0002,2]
[395158166,1764490252177,-151.0,0.0002,2]
[395158167,1764490252186,-151.0,0.0002,2]
[395158168,1764490252195,-240.808236,0.0002,2]
[395158169,1764490252205,-240.808236,0.0002,2]
[395158170,1764490252214,-240.808236,0.0002,2]
[395158171,1764490252224,-240.808236,0.0002,2]
[395158172,1764490252233,-151.0,0.0002,2]
[395158173,1764490252242,-151.0,0.0002,2]
[395158174,1764490252252,-419.401871,0.0002,2]
[395158175,1764490252261,-151.0,0.0002,2]
[395158176,1764490252271,-419.401871,0.0002,2]
[395158177,1764490252280,-151.0,0.0002,2]
[395158178,1764490252290,-419.401871,0.0002,2]
[395158179,1764490252299,-419.401871,0.0002,2]
[395158180,1764490252308,-151.0,0.0002,2]
[395158181,1764490252318,-151.0,0.0002,2]
[395158182,1764490252327,-151.0,0.0002,2]
[395158183,1764490252337,-151.0,0.0002,2]
[395158184,1764490252346,-990.266982,0.0002,2]
[395158185,1764490252356,-990.266982,0.0002,2]
[395158186,1764490252365,-151.0,0.0002,2]
[395158187,1764490252374,-990.266982,0.0002,2]
[395158188,1764490252384,-732.247,0.0002,2]
[395158189,1764490252394,-990.266982,0.0002,2]
[395158190,1764490252403,-232.714395,0.0002,2]
[395158191,1764490252413,-732.247,0.0002,2]
[395158192,1764490252423,-732.247,0.0002,2]
[395158193,1764490252432,-151.0,0.0002,2]
[395158194,1764490252442,-732.247,0.0002,2]
[395158195,1764490252452,-151.0,0.0002,2]
[395158196,1764490252461,-182.378787,0.0002,2]
[395158197,1764490252471,-151.0,0.0002,2]
[395158198,1764490252481,-182.378787,0.0002,2]
[395158199,1764490252491,-182.378787,0.0002,2]
[395158200,1764490252500,-151.0,0.0002,2]
[395158201,1764490252511,-232.714395,0.0002,2]
[395158202,1764490252521,-182.378787,0.0002,2]
[395158203,1764490252531,-232.714395,0.0002,2]
[395158204,1764490252541,-151.0,0.0002,2]
[395158205,1764490252550,-232.714395,0.0002,2]
[395158206,1764490252560,-151.0,0.0002,2]
[395158207,1764490252570,-835.575676,0.0002,2]
[395158208,1764490252580,-835.575676,0.0002,2]
[395158209,1764490252590,-835.575676,0.0002,2]
[395158210,1764490252599,-835.575676,0.0002,2]
[395158211,1764490252610,-151.0,0.0002,2]
[395158212,1764490252953,-151.0,0.0002,2]
[395158213,1764490252975,-151.0,0.0002,2]
[395158214,1764490252987,-151.0,0.0002,2]
[395158215,1764490252997,-1049.194147,0.0002,2]
[395158216,1764490253006,-1049.194147,0.0002,2]
[395158217,1764490253015,-1049.194147,0.0002,2]
[395158218,1764490253024,-1049.194147,0.0002,2]
[395158219,1764490253034,-187.670596,0.0002,2]
[395158220,1764490253043,-187.670596,0.0002,2]
[395158221,1764490253052,-187.670596,0.0002,2]
[395158222,1764490253061,-187.670596,0.0002,2]
[395158223,1764490253070,-151.0,0.0002,2]
[395158224,1764490253080,-151.0,0.0002,2]
[395158225,1764490253089,-219.043706,0.0002,2]
[395158226,1764490253098,-151.0,0.0002,2]
[395158227,1764490253107,-151.0,0.0002,2]
[395158228,1764490253116,-185.47,0.0002,2]
[395158229,1764490253126,-354.46542,0.0002,2]
[395158230,1764490253135,-8720.0,0.0002001,2]
[395158231,1764490253145,-150.0,0.00020015,4]
[395158232,1764490253155,-150.0,0.00020015,4]
[395158233,1764490253165,-150.0,0.00020052,4]
[395158234,1764490253175,-150.0,0.00020052,4]
[395158235,1764490253185,-150.0,0.00020067,4]
[395158236,1764490253195,-1000.0,0.00020116,2]
[395158237,1764490253204,-150.0,0.00020126,4]
[395158238,1764490253214,-150.0,0.00020145,4]
[395158239,1764490253224,-150.0,0.00020155,4]
[395158240,1764490253234,-1000.0,0.00020169,2]
[395158241,1764490253243,-150.0,0.00020171,4]
[395158242,1764490253253,-150.0,0.00020171,4]
[395158243,1764490253263,-953.36,0.00020187,2]
[395158244,1764490253273,-305.37,0.00020195,2]
[395158245,1764490253283,-150.0,0.000202,4]
[395158246,1764490253292,-150.0,0.000202,4]
[395158247,1764490253302,-309.03774685,0.00020274,2]
[395158248,1764490253312,-150.0,0.00020275,4]
[395158249,1764490253321,-150.0,0.00020275,4]
[395158250,1764490253332,-150.0,0.00020275,4]
[395158251,1764490253341,-150.0,0.00020275,4]
[395158252,1764490253351,-150.0,0.00020275,4]
[395158253,1764490253361,-150.0,0.00020275,4]
[395158254,1764490253372,-150.0,0.00020315,4]
[395158255,1764490253382,-150.0,0.00020349,4]
[395158256,1764490253392,-150.0,0.00020349,4]
[395158257,1764490253402,-150.0,0.00020379,4]
[395158258,1764490253413,-150.0,0.00020379,4]
[395158259,1764490253427,-150.0,0.00020405,4]
[395158260,1764490253436,-150.0,0.00020423,4]
[395158261,1764490253447,-305.37,0.00020469,2]
[395158262,1764490253456,-298.83,0.00020472,2]
[395158263,1764490253466,-150.0,0.00020475,4]
[395158264,1764490253475,-150.0,0.00020483,4]
[395158265,1764490253485,-150.0,0.00020497,4]
[395158266,1764490253494,-150.0,0.00020497,4]
[395158267,1764490253504,-150.0,0.00020535,4]
[395158268,1764490253513,-150.0,0.00020535,4]
[395158269,1764490253522,-190.9,0.00020548,2]
[395158270,1764490253532,-21394.73,0.00020548,2]
[395158271,1764490253542,-150.0,0.00020572,4]
[395158272,1764490253552,-6453.0,0.00020575,2]
[395158273,1764490253562,-151.0,0.00020582,2]
[395158274,1764490253572,-300.0,0.00020584,2]
[395158275,1764490253582,-300.0,0.00020584,2]
[395158276,1764490253592,-300.0,0.00020584,2]
[395158277,1764490253602,-300.0,0.00020584,2]
[395158278,1764490253612,-287028.8134504,0.00020585,2]
[395158279,1764490253621,-202.628579,0.00020585,2]
[395158280,1764490253631,-151.0,0.00020585,2]
[395158281,1764490253641,-151.0,0.00020585,2]
[395158282,1764490253651,-151.0,0.00020585,2]
[395158283,1764490253661,-151.0,0.00020585,2]
[395158284,1764490253670,-754.688902,0.00020585,2]
[395158285,1764490253680,-754.688902,0.00020585,2]
[395158286,1764490253690,-151.0,0.00020585,2]
[395158287,1764490253700,-754.688902,0.00020585,2]
[395158288,1764490253710,-151.0,0.00020585,2]
[395158289,1764490253720,-754.688902,0.00020585,2]
[395158290,1764490253729,-151.0,0.00020585,2]
[395158291,1764490253739,-151.0,0.00020585,2]
[395158292,1764490253748,-239.580295,0.00020585,2]
[395158293,1764490253758,-3526.461518,0.00020585,2]
[395158294,1764490253767,-3526.461518,0.00020585,2]
[395158295,1764490253776,-3526.461518,0.00020585,2]
[395158296,1764490253786,-3526.461518,0.00020585,2]
[395158297,1764490253795,-151.0,0.00020585,2]
[395158298,1764490253805,-307.940521,0.00020585,2]
[395158299,1764490253815,-151.0,0.00020585,2]
[395158300,1764490253824,-307.940521,0.00020585,2]
[395158301,1764490253834,-307.940521,0.00020585,2]
[395158302,1764490253844,-151.0,0.00020585,2]
[395158303,1764490253854,-307.940521,0.00020585,2]
[395158304,1764490253863,-151.0,0.00020585,2]
[395158305,1764490253872,-151.0,0.00020585,2]
[395158306,1764490253883,-151.0,0.00020585,2]
[395158307,1764490253898,-151.0,0.00020585,2]
[395158308,1764490253907,-151.0,0.00020585,2]
[395158309,1764490253917,-186.992889,0.00020585,2]
[395158310,1764490253927,-151.0,0.00020585,2]
[395158311,1764490253937,-151.0,0.00020585,2]
[395158312,1764490253946,-151.0,0.00020585,2]
[395158313,1764490253955,-151.0,0.00020585,2]
[395158314,1764490253965,-151.0,0.00020585,2]
[395158315,1764490253975,-151.0,0.00020585,2]
[395158316,1764490253984,-178.641398,0.00020585,2]
[395158317,1764490253994,-178.641398,0.00020585,2]
[395158318,1764490254004,-178.641398,0.00020585,2]
[395158319,1764490254013,-178.641398,0.00020585,2]
[395158320,1764490254023,-151.0,0.00020585,2]
[395158321,1764490254033,-151.0,0.00020585,2]
[395158322,1764490254043,-2743.513777,0.00020585,2]
[395158323,1764490254052,-151.0,0.00020585,2]
[395158324,1764490254062,-2743.513777,0.00020585,2]
[395158325,1764490254071,-171.912299,0.00020585,2]
[395158326,1764490254081,-151.0,0.00020585,2]
[395158327,1764490254090,-151.0,0.00020585,2]
[395158328,1764490254100,-2743.513777,0.00020585,2]
[395158329,1764490254110,-171.912299,0.00020585,2]
[395158330,1764490254119,-151.0,0.00020585,2]
[395158331,1764490254129,-2743.513777,0.00020585,2]
[395158332,1764490254138,-171.912299,0.00020585,2]
[395158333,1764490254148,-151.0,0.00020585,2]
[395158334,1764490254157,-171.912299,0.00020585,2]
[395158335,1764490254168,-151.0,0.00020585,2]
[395158336,1764490254177,-151.0,0.00020585,2]
[395158337,1764490254187,-570.591834,0.00020585,2]
[395158338,1764490254197,-946.977142,0.00020585,2]
[395158339,1764490254207,-151.0,0.00020585,2]
[395158340,1764490254216,-570.591834,0.00020585,2]
[395158341,1764490254225,-172.610651,0.00020585,2]
[395158342,1764490254235,-946.977142,0.00020585,2]
[395158343,1764490254244,-570.591834,0.00020585,2]
[395158344,1764490254253,-263.091347,0.00020585,2]
[395158345,1764490254262,-151.0,0.00020585,2]
[395158346,1764490254272,-172.610651,0.00020585,2]
[395158347,1764490254282,-946.977142,0.00020585,2]
[395158348,1764490254291,-570.591834,0.00020585,2]
[395158349,1764490254300,-151.0,0.00020585,2]
[395158350,1764490254309,-263.091347,0.00020585,2]
[395158351,1764490254318,-172.610651,0.00020585,2]
[395158352,1764490254327,-946.977142,0.00020585,2]
[395158353,1764490254337,-263.091347,0.00020585,2]
[395158354,1764490254346,-263.091347,0.00020585,2]
[395158355,1764490254355,-151.0,0.00020585,2]
[395158356,1764490254364,-151.0,0.00020585,2]
[395158357,1764490254374,-172.610651,0.00020585,2]
[395158358,1764490254383,-151.0,0.00020585,2]
[395158359,1764490254393,-722.090554,0.00020585,2]
[395158360,1764490254403,-722.090554,0.00020585,2]
[395158361,1764490254412,-151.0,0.00020585,2]
[395158362,1764490254422,-722.090554,0.00020585,2]
[395158363,1764490254431,-722.090554,0.00020585,2]
[395158364,1764490254441,-185.96854,0.00020585,2]
[395158365,1764490254450,-185.96854,0.00020585,2]
[395158366,1764490254459,-185.96854,0.00020585,2]
[395158367,1764490254469,-185.96854,0.00020585,2]
[395158368,1764490254479,-151.0,0.00020585,2]
[395158369,1764490254490,-151.0,0.00020585,2]
[395158370,1764490254500,-151.0,0.00020585,2]
[395158371,1764490254510,-151.0,0.00020585,2]
[395158372,1764490254519,-151.0,0.00020585,2]
[395158373,1764490254528,-151.0,0.00020585,2]
[395158374,1764490254538,-151.0,0.00020585,2]
[395158375,1764490254547,-151.0,0.00020585,2]
[395158376,1764490254556,-168.883419,0.00020585,2]
[395158377,1764490254566,-168.883419,0.00020585,2]
[395158378,1764490254575,-168.883419,0.00020585,2]
[395158379,1764490254584,-289.924678,0.00020585,2]
[395158380,1764490254595,-168.883419,0.00020585,2]
[395158381,1764490254605,-289.924678,0.00020585,2]
[395158382,1764490254614,-289.924678,0.00020585,2]
[395158383,1764490254623,-289.924678,0.00020585,2]
[395158384,1764490254634,-151.0,0.00020585,2]
[395158385,1764490254643,-169.653292,0.00020585,2]
[395158386,1764490254652,-151.0,0.00020585,2]
[395158387,1764490254661,-151.0,0.00020585,2]
[395158388,1764490254671,-151.0,0.00020585,2]
[395158389,1764490254681,-151.0,0.00020585,2]
[395158390,1764490254691,-215.175262,0.00020585,2]
[395158391,1764490254700,-418.042091,0.00020585,2]
[395158392,1764490254710,-151.0,0.00020585,2]
[395158393,1764490254719,-215.175262,0.00020585,2]
[395158394,1764490254730,-418.042091,0.00020585,2]
[395158395,1764490254739,-151.0,0.00020585,2]
[395158396,1764490254749,-215.175262,0.00020585,2]
[395158397,1764490254759,-418.042091,0.00020585,2]
[395158398,1764490254769,-151.0,0.00020585,2]
[395158399,1764490254778,-215.175262,0.00020585,2]
[395158400,1764490254788,-418.042091,0.00020585,2]
[395158401,1764490254797,-151.0,0.00020585,2]
[395158402,1764490254806,-151.0,0.00020585,2]
[395158403,1764490254815,-151.0,0.00020585,2]
[395158404,1764490254824,-586.260434,0.00020585,2]
[395158405,1764490254834,-586.260434,0.00020585,2]
[395158406,1764490254843,-586.260434,0.00020585,2]
[395158407,1764490254853,-586.260434,0.00020585,2]
[395158408,1764490254862,-151.0,0.00020585,2]
[395158409,1764490254871,-337.458044,0.00020585,2]
[395158410,1764490254881,-151.0,0.00020585,2]
[395158411,1764490254894,-176.888208,0.00020585,2]
[395158412,1764490254905,-337.458044,0.00020585,2]
[395158413,1764490254914,-337.458044,0.00020585,2]
[395158414,1764490254925,-337.458044,0.00020585,2]
[395158415,1764490254935,-151.0,0.00020585,2]
[395158416,1764490254943,-150.0,0.00020587,4]
[395158417,1764490254953,-150.0,0.00020587,4]
[395158418,1764490254965,-1975.6061872,0.00020611,2]
[395158419,1764490254974,-150.0,0.00020635,4]
[395158420,1764490254984,-150.0,0.00020646,4]
[395158421,1764490254993,-150.0,0.00020646,4]
[395158422,1764490255004,-150.0,0.00020665,4]
[395158423,1764490255015,-1600.0,0.0002067,2]
[395158424,1764490255024,-150.0,0.00020691,4]
[395158425,1764490255035,-300.0,0.00020699,2]
[395158426,1764490255044,-300.0,0.00020699,2]
[395158427,1764490255055,-22529.57748285,0.000207,2]
[395158428,1764490255065,-2000.0,0.000207,2]
[395158429,1764490255074,-1000.0,0.00020717,2]
[395158430,1764490255083,-150.0,0.0002072,4]
[395158431,1764490255093,-305.39,0.00020743,2]
[395158432,1764490255102,-1000.0,0.00020795,2]
[395158433,1764490255111,-204.30018079,0.00020795,4]
[395158434,1764490255120,-150.10346577,0.00020795,4]
[395158435,1764490255131,-165.6418434,0.00020795,4]
[395158436,1764490255140,-168.80232589,0.00020795,4]
[395158437,1764490255151,-239.89101121,0.00020795,4]
[395158438,1764490255164,-174.32201145,0.00020795,4]
[395158439,1764490255175,-155.69497856,0.00020795,4]
[395158440,1764490255186,-151.4044182,0.00020795,4]
[395158441,1764490255195,-151.57196874,0.00020795,4]
[395158442,1764490255205,-152.10525802,0.00020795,4]
[395158443,1764490255214,-244.26630786,0.00020795,4]
[395158444,1764490255224,-152.51466941,0.00020795,4]
[395158445,1764490255233,-587.40757822,0.00020829,2]
[395158446,1764490255243,-1188.45239256,0.00020892,2]
[395158447,1764490255252,-300.0,0.00020999,2]
[395158448,1764490255370,-20000.0,0.00021,2]
[395158449,1764490255379,-1185.89629015,0.00021,2]